[Event "*** Titled Tuesday Blitz"]
[Site "Chess.com"]
[Date "2019.01.01"]
[Round "2"]
[White "Karina_Oparina"]
[Black "salomez"]
[Result "0-1"]
[WhiteElo "2057"]
[BlackElo "2139"]
[TimeControl "180+2"]
[EndTime "13:24:19 PST"]
[Termination "salomez won on time"]

1. Nf3 {[%clk 0:03:00.5]} 1... Nf6 {[%clk 0:02:59.2]} 2. g3 {[%clk 0:03:01]}
2... g6 {[%clk 0:02:56.5]} 3. Bg2 {[%clk 0:02:59.5]} 3... Bg7 {[%clk 0:02:56.9]}
4. O-O {[%clk 0:02:58.9]} 4... O-O {[%clk 0:02:57.2]} 5. c4 {[%clk 0:02:58.7]}
5... d5 {[%clk 0:02:55.8]} 6. cxd5 {[%clk 0:02:56.8]} 6... Nxd5 {[%clk
0:02:56.1]} 7. Nc3 {[%clk 0:02:53.9]} 7... Nb6 {[%clk 0:02:53.7]} 8. d3 {[%clk
0:02:49.3]} 8... Nc6 {[%clk 0:02:52.4]} 9. Bd2 {[%clk 0:02:40.6]} 9... e5 {[%clk
0:02:45.9]} 10. a3 {[%clk 0:02:38.2]} 10... Nd4 {[%clk 0:02:38.6]} 11. b4 {[%clk
0:02:36.3]} 11... h6 {[%clk 0:02:27.5]} 12. Rc1 {[%clk 0:02:34.4]} 12... a5
{[%clk 0:02:22.6]} 13. Nxd4 {[%clk 0:02:28.1]} 13... exd4 {[%clk 0:02:22.1]} 14.
Nb5 {[%clk 0:02:25.3]} 14... c6 {[%clk 0:02:00.1]} 15. bxa5 {[%clk 0:02:24.9]}
15... cxb5 {[%clk 0:00:35.1]} 16. g4 {[%clk 0:02:26.8]} 16... Nd5 {[%clk
0:00:31.1]} 17. Rc5 {[%clk 0:02:14.4]} 17... Nc3 {[%clk 0:00:29]} 18. Bxc3
{[%clk 0:02:11.6]} 18... dxc3 {[%clk 0:00:29.9]} 19. Rxb5 {[%clk 0:02:11.4]}
19... Rxa5 {[%clk 0:00:29]} 20. Qb3 {[%clk 0:02:08.3]} 20... Bxg4 {[%clk
0:00:23.2]} 21. Rxb7 {[%clk 0:02:06.5]} 21... Bxe2 {[%clk 0:00:22.4]} 22. Re1
{[%clk 0:02:05.2]} 22... Bxd3 {[%clk 0:00:20.3]} 23. Ree7 {[%clk 0:01:46.4]}
23... Rf5 {[%clk 0:00:11.7]} 24. Red7 {[%clk 0:01:35]} 24... Qg5 {[%clk
0:00:11.5]} 25. Rxd3 {[%clk 0:01:30.5]} 25... Qf4 {[%clk 0:00:11.2]} 26. Bf3
{[%clk 0:01:18.2]} 26... Rg5+ {[%clk 0:00:09.8]} 27. Bg2 {[%clk 0:01:13.9]}
27... Be5 {[%clk 0:00:09.5]} 28. Rg3 {[%clk 0:00:55.8]} 28... Qc1+ {[%clk
0:00:08.8]} 29. Bf1 {[%clk 0:00:55.9]} 29... Bxg3 {[%clk 0:00:09.6]} 30. hxg3
{[%clk 0:00:56.7]} 30... Re5 {[%clk 0:00:08.6]} 31. Kg2 {[%clk 0:00:55.5]} 31...
Re1 {[%clk 0:00:09.1]} 32. Bc4 {[%clk 0:00:52.8]} 32... Rg1+ {[%clk 0:00:09.3]}
33. Kf3 {[%clk 0:00:51.1]} 33... Qd1+ {[%clk 0:00:09.7]} 34. Qxd1 {[%clk
0:00:51.4]} 34... Rxd1 {[%clk 0:00:10.4]} 35. Bb3 {[%clk 0:00:50.2]} 35... Rd3+
{[%clk 0:00:09]} 36. Ke2 {[%clk 0:00:49]} 36... Rd2+ {[%clk 0:00:10]} 37. Ke1
{[%clk 0:00:48.4]} 37... Rb2 {[%clk 0:00:09.8]} 38. Kd1 {[%clk 0:00:44.3]} 38...
c2+ {[%clk 0:00:09.1]} 39. Kc1 {[%clk 0:00:43.7]} 39... Rb1+ {[%clk 0:00:07.5]}
40. Kxc2 {[%clk 0:00:42.5]} 40... Rf1 {[%clk 0:00:09]} 41. f4 {[%clk 0:00:39.6]}
41... Rf3 {[%clk 0:00:08.9]} 42. a4 {[%clk 0:00:33.5]} 42... Rxg3 {[%clk
0:00:09.9]} 43. a5 {[%clk 0:00:34]} 43... Rg2+ {[%clk 0:00:09.3]} 44. Kb1 {[%clk
0:00:34.5]} 44... Rd8 {[%clk 0:00:08.8]} 45. Rxf7 {[%clk 0:00:29.9]} 45... Kh8
{[%clk 0:00:07.1]} 46. Rc7 {[%clk 0:00:26.8]} 46... Re8 {[%clk 0:00:05.6]} 47.
a6 {[%clk 0:00:24.8]} 47... Ra8 {[%clk 0:00:06]} 48. Bd5 {[%clk 0:00:21]} 48...
Rg1+ {[%clk 0:00:06.7]} 49. Kc2 {[%clk 0:00:17.2]} 49... Rxa6 {[%clk 0:00:07.7]}
50. Kd3 {[%clk 0:00:16.9]} 50... Rd1+ {[%clk 0:00:07.4]} 51. Ke4 {[%clk
0:00:16.9]} 51... Rd6 {[%clk 0:00:05.8]} 52. Rc8+ {[%clk 0:00:16.1]} 52... Kg7
{[%clk 0:00:06.3]} 53. Rg8+ {[%clk 0:00:15.5]} 53... Kf6 {[%clk 0:00:06.5]} 54.
Rf8+ {[%clk 0:00:15.8]} 54... Ke7 {[%clk 0:00:07.4]} 55. Rf7+ {[%clk 0:00:12]}
55... Ke8 {[%clk 0:00:08.5]} 56. Rh7 {[%clk 0:00:12.3]} 56... R6xd5 {[%clk
0:00:08.4]} 57. Rxh6 {[%clk 0:00:12.3]} 57... R1d4+ {[%clk 0:00:08.9]} 58. Kf3
{[%clk 0:00:11.2]} 58... Rf5 {[%clk 0:00:08.2]} 0-1

[Event "*** Titled Tuesday Blitz"]
[Site "Chess.com"]
[Date "2019.01.01"]
[Round "2"]
[White "wannabe2700"]
[Black "GMKrikor"]
[Result "0-1"]
[WhiteElo "2530"]
[BlackElo "2731"]
[TimeControl "180+2"]
[EndTime "13:24:29 PST"]
[Termination "GMKrikor won by resignation"]

1. e4 {[%clk 0:03:01.9]} 1... c5 {[%clk 0:03:00.4]} 2. Nf3 {[%clk 0:03:02.7]}
2... g6 {[%clk 0:03:01]} 3. d4 {[%clk 0:03:02.9]} 3... cxd4 {[%clk 0:03:02.2]}
4. Nxd4 {[%clk 0:03:04.6]} 4... Nc6 {[%clk 0:03:03.5]} 5. c4 {[%clk 0:03:05.5]}
5... Nf6 {[%clk 0:03:04.4]} 6. Nc3 {[%clk 0:03:06.1]} 6... d6 {[%clk 0:03:05.5]}
7. Be2 {[%clk 0:03:02.9]} 7... Nxd4 {[%clk 0:03:05.8]} 8. Qxd4 {[%clk
0:03:04.3]} 8... Bg7 {[%clk 0:03:06.9]} 9. Be3 {[%clk 0:03:05.9]} 9... O-O
{[%clk 0:03:07.5]} 10. Qd2 {[%clk 0:03:07.3]} 10... a5 {[%clk 0:03:09.1]} 11.
O-O {[%clk 0:03:07.7]} 11... a4 {[%clk 0:03:09.8]} 12. h3 {[%clk 0:02:50.3]}
12... Be6 {[%clk 0:03:09.8]} 13. Qc2 {[%clk 0:02:35.8]} 13... Qa5 {[%clk
0:03:07.3]} 14. Rad1 {[%clk 0:02:29.7]} 14... Rfc8 {[%clk 0:03:07.6]} 15. b3
{[%clk 0:02:08.1]} 15... axb3 {[%clk 0:03:08.1]} 16. axb3 {[%clk 0:02:10]} 16...
Nd7 {[%clk 0:02:54.3]} 17. Bd4 {[%clk 0:02:05.2]} 17... Bxd4 {[%clk 0:02:50.9]}
18. Rxd4 {[%clk 0:02:07.1]} 18... Qb6 {[%clk 0:02:49]} 19. Rdd1 {[%clk
0:02:02.2]} 19... Nc5 {[%clk 0:02:35.7]} 20. Rb1 {[%clk 0:02:02.8]} 20... Qb4
{[%clk 0:02:33]} 21. Na2 {[%clk 0:02:03.4]} 21... Qa3 {[%clk 0:02:33.2]} 22. Nc3
{[%clk 0:02:03.7]} 22... Qb4 {[%clk 0:02:07.4]} 23. Na2 {[%clk 0:02:04.4]} 23...
Qb6 {[%clk 0:02:08.8]} 24. Nc3 {[%clk 0:02:04.5]} 24... Nd7 {[%clk 0:02:03.9]}
25. Kh2 {[%clk 0:01:59]} 25... Ra3 {[%clk 0:02:01.4]} 26. f4 {[%clk 0:01:58.2]}
26... Nf6 {[%clk 0:01:55.7]} 27. f5 {[%clk 0:01:57.5]} 27... Bd7 {[%clk
0:01:53.9]} 28. Bd3 {[%clk 0:01:28.2]} 28... Qd4 {[%clk 0:01:52.6]} 29. Rbd1
{[%clk 0:01:12.9]} 29... Qe5+ {[%clk 0:01:50.3]} 30. Kg1 {[%clk 0:01:14.1]}
30... Bc6 {[%clk 0:01:49.4]} 31. Nb1 {[%clk 0:00:55.6]} 31... Ra1 {[%clk
0:01:42.7]} 32. Nc3 {[%clk 0:00:55.2]} 32... Rxd1 {[%clk 0:01:40.5]} 33. Rxd1
{[%clk 0:00:57.1]} 33... Ra8 {[%clk 0:01:40.3]} 34. fxg6 {[%clk 0:00:52.9]}
34... hxg6 {[%clk 0:01:40.9]} 35. Nd5 {[%clk 0:00:51.2]} 35... Bxd5 {[%clk
0:01:37.4]} 36. exd5 {[%clk 0:00:53.1]} 36... Kg7 {[%clk 0:01:30.5]} 37. Be2
{[%clk 0:00:42.2]} 37... Qe3+ {[%clk 0:01:28.5]} 38. Kh2 {[%clk 0:00:41.2]}
38... Ne4 {[%clk 0:01:21.5]} 39. Bf3 {[%clk 0:00:38.8]} 39... Ng5 {[%clk
0:01:07.5]} 40. Bg4 {[%clk 0:00:38.3]} 40... Qf4+ {[%clk 0:00:52.3]} 41. g3
{[%clk 0:00:33.7]} 41... Qe3 {[%clk 0:00:49.2]} 42. Rd3 {[%clk 0:00:31.5]} 42...
Qe5 {[%clk 0:00:48]} 43. h4 {[%clk 0:00:28.3]} 43... Ne4 {[%clk 0:00:48.4]} 44.
Bh3 {[%clk 0:00:21.5]} 44... Ra1 {[%clk 0:00:47.3]} 45. Bg2 {[%clk 0:00:18]}
45... Nf6 {[%clk 0:00:41.7]} 46. Qc3 {[%clk 0:00:13.6]} 46... Ng4+ {[%clk
0:00:41.4]} 47. Kh3 {[%clk 0:00:13.2]} 47... Nf2+ {[%clk 0:00:42.6]} 48. Kh2
{[%clk 0:00:14.7]} 48... Nxd3 {[%clk 0:00:42]} 49. Qxd3 {[%clk 0:00:16.6]} 49...
Ra2 {[%clk 0:00:40.7]} 50. Kh3 {[%clk 0:00:17.1]} 50... Qf5+ {[%clk 0:00:36.9]}
51. Qxf5 {[%clk 0:00:17.7]} 51... gxf5 {[%clk 0:00:38.8]} 52. Bf3 {[%clk
0:00:18.4]} 52... Rb2 {[%clk 0:00:37.8]} 53. Bd1 {[%clk 0:00:19.5]} 53... Rd2
{[%clk 0:00:38.8]} 54. Bh5 {[%clk 0:00:20.3]} 54... Rd3 {[%clk 0:00:39.6]} 55.
Kg2 {[%clk 0:00:17.1]} 55... Rxb3 {[%clk 0:00:40.4]} 56. Kf2 {[%clk 0:00:18.2]}
56... Kf6 {[%clk 0:00:39.3]} 57. Be2 {[%clk 0:00:16.7]} 57... Rc3 {[%clk
0:00:39.3]} 58. Bf1 {[%clk 0:00:17.2]} 58... b6 {[%clk 0:00:40.4]} 59. Kg2
{[%clk 0:00:15.5]} 59... e6 {[%clk 0:00:40.8]} 60. Kf2 {[%clk 0:00:15.2]} 60...
e5 {[%clk 0:00:36.8]} 61. Kg2 {[%clk 0:00:13.8]} 61... e4 {[%clk 0:00:34.2]} 62.
Be2 {[%clk 0:00:14.4]} 62... Ke5 {[%clk 0:00:31.2]} 63. Kf2 {[%clk 0:00:15]}
63... f4 {[%clk 0:00:31.9]} 64. gxf4+ {[%clk 0:00:15.4]} 64... Kxf4 {[%clk
0:00:33.8]} 65. h5 {[%clk 0:00:13.5]} 65... Rh3 {[%clk 0:00:34.1]} 66. Kg2
{[%clk 0:00:14.2]} 66... Rh4 {[%clk 0:00:35.4]} 67. c5 {[%clk 0:00:14.5]} 67...
bxc5 {[%clk 0:00:36.1]} 68. Bd1 {[%clk 0:00:13.1]} 68... f5 {[%clk 0:00:36.3]}
69. Be2 {[%clk 0:00:14.5]} 69... Kg5 {[%clk 0:00:36.3]} 70. Kg3 {[%clk
0:00:15.8]} 70... Rxh5 {[%clk 0:00:37.3]} 71. Bxh5 {[%clk 0:00:16.2]} 71... Kxh5
{[%clk 0:00:38.4]} 72. Kf4 {[%clk 0:00:17.9]} 72... e3 {[%clk 0:00:36.2]} 73.
Kxf5 {[%clk 0:00:15.4]} 73... e2 {[%clk 0:00:37]} 0-1

[Event "*** Titled Tuesday Blitz"]
[Site "Chess.com"]
[Date "2019.01.01"]
[Round "2"]
[White "TheBigBadChessDad"]
[Black "albi1999"]
[Result "1/2-1/2"]
[WhiteElo "2290"]
[BlackElo "2464"]
[TimeControl "180+2"]
[EndTime "13:25:02 PST"]
[Termination "Game drawn by agreement"]

1. d4 {[%clk 0:03:01.9]} 1... d5 {[%clk 0:02:59.1]} 2. Bf4 {[%clk 0:03:01.6]}
2... Nf6 {[%clk 0:02:57.9]} 3. e3 {[%clk 0:03:02.6]} 3... e6 {[%clk 0:02:56.9]}
4. Nd2 {[%clk 0:03:00.2]} 4... c5 {[%clk 0:02:55.5]} 5. c3 {[%clk 0:03:00.5]}
5... Nc6 {[%clk 0:02:46.2]} 6. Ngf3 {[%clk 0:03:01.3]} 6... cxd4 {[%clk
0:02:46.6]} 7. cxd4 {[%clk 0:03:01.6]} 7... Qb6 {[%clk 0:02:46.3]} 8. Rb1 {[%clk
0:02:55.5]} 8... Nh5 {[%clk 0:02:47.4]} 9. Bg3 {[%clk 0:02:54.7]} 9... Nxg3
{[%clk 0:02:43.7]} 10. hxg3 {[%clk 0:02:55.4]} 10... Bd6 {[%clk 0:02:44.5]} 11.
a3 {[%clk 0:02:55.5]} 11... h6 {[%clk 0:02:45.2]} 12. Bd3 {[%clk 0:02:56.2]}
12... Bd7 {[%clk 0:02:45.1]} 13. O-O {[%clk 0:02:50.6]} 13... O-O {[%clk
0:02:44.9]} 14. b4 {[%clk 0:02:47.7]} 14... Ne7 {[%clk 0:02:45.7]} 15. Nb3
{[%clk 0:02:32.4]} 15... Rac8 {[%clk 0:02:45.9]} 16. Nc5 {[%clk 0:02:29.2]}
16... Rc7 {[%clk 0:02:47]} 17. Qd2 {[%clk 0:02:00.9]} 17... Rfc8 {[%clk
0:02:44.8]} 18. Rfc1 {[%clk 0:02:00.6]} 18... Be8 {[%clk 0:02:43.2]} 19. g4
{[%clk 0:01:56.6]} 19... Qc6 {[%clk 0:02:32.8]} 20. g5 {[%clk 0:01:46.9]} 20...
hxg5 {[%clk 0:02:32.6]} 21. Nxg5 {[%clk 0:01:48]} 21... b6 {[%clk 0:02:31.9]}
22. Nb3 {[%clk 0:01:26.1]} 22... Qa4 {[%clk 0:02:32.3]} 23. Rxc7 {[%clk
0:01:11.2]} 23... Rxc7 {[%clk 0:02:34.2]} 24. Qb2 {[%clk 0:01:10.3]} 24... Bb5
{[%clk 0:02:11.4]} 25. Bxb5 {[%clk 0:00:41.6]} 25... Qxb5 {[%clk 0:02:09.7]} 26.
Rc1 {[%clk 0:00:42.7]} 26... Rxc1+ {[%clk 0:02:06.2]} 27. Qxc1 {[%clk
0:00:40.6]} 27... Qc4 {[%clk 0:01:55.8]} 28. Qd1 {[%clk 0:00:41.4]} 28... g6
{[%clk 0:01:43.8]} 29. Qf3 {[%clk 0:00:29.9]} 29... Nf5 {[%clk 0:01:41]} 30. Nd2
{[%clk 0:00:30.5]} 30... Qc2 {[%clk 0:01:28.8]} 31. Nf1 {[%clk 0:00:26.9]} 31...
Be7 {[%clk 0:01:23.1]} 32. Nxf7 {[%clk 0:00:24.8]} 32... Kxf7 {[%clk 0:01:23]}
33. g4 {[%clk 0:00:26.5]} 33... a5 {[%clk 0:01:22.2]} 34. bxa5 {[%clk 0:00:26]}
34... bxa5 {[%clk 0:01:24.1]} 35. gxf5 {[%clk 0:00:27]} 35... Qxf5 {[%clk
0:01:25.5]} 36. Qxf5+ {[%clk 0:00:28.1]} 36... gxf5 {[%clk 0:01:26.9]} 37. a4
{[%clk 0:00:29.5]} 37... Bb4 {[%clk 0:01:26.3]} 38. Kg2 {[%clk 0:00:20.7]} 38...
Kf6 {[%clk 0:01:27.4]} 39. f4 {[%clk 0:00:21.1]} 39... Kg6 {[%clk 0:01:26.5]}
40. Nh2 {[%clk 0:00:19.5]} 40... Be7 {[%clk 0:01:27.6]} 41. Nf3 {[%clk
0:00:19.2]} 41... Bf6 {[%clk 0:01:29.1]} 42. Kg3 {[%clk 0:00:19.1]} 42... Kh5
{[%clk 0:01:29.7]} 43. Nd2 {[%clk 0:00:19]} 43... Be7 {[%clk 0:01:28.1]} 44. Nb3
{[%clk 0:00:19.3]} 44... Bb4 {[%clk 0:01:28.8]} 45. Nc5 {[%clk 0:00:20.4]} 45...
Kg6 {[%clk 0:01:13.3]} 46. Nxe6 {[%clk 0:00:21.4]} 46... Bd6 {[%clk 0:01:13.8]}
47. Nc5 {[%clk 0:00:21.6]} 47... Kf6 {[%clk 0:01:13.8]} 48. Nd3 {[%clk
0:00:21.5]} 48... Bf8 {[%clk 0:01:13.5]} 49. Ne5 {[%clk 0:00:21.5]} 49... Ke6
{[%clk 0:01:14.3]} 50. Kh4 {[%clk 0:00:21.5]} 50... Bb4 {[%clk 0:01:15.3]} 51.
Kg3 {[%clk 0:00:20.2]} 51... Be1+ {[%clk 0:01:15.5]} 52. Kf3 {[%clk 0:00:21.3]}
52... Bb4 {[%clk 0:01:17.4]} 53. Nc6 {[%clk 0:00:21.6]} 53... Bc3 {[%clk
0:01:18.7]} 54. Ke2 {[%clk 0:00:21.9]} 54... Kd6 {[%clk 0:01:20.1]} 55. Ne5
{[%clk 0:00:22]} 55... Ke6 {[%clk 0:01:21.5]} 56. Kd3 {[%clk 0:00:23.5]} 56...
Be1 {[%clk 0:01:22.1]} 57. Nc6 {[%clk 0:00:24]} 57... Kd6 {[%clk 0:01:22.4]} 58.
Na7 {[%clk 0:00:23.4]} 58... Bb4 {[%clk 0:01:19.3]} 59. Ke2 {[%clk 0:00:23.5]}
59... Ke6 {[%clk 0:01:17.2]} 60. Kf3 {[%clk 0:00:24.6]} 60... Bd2 {[%clk
0:01:16.9]} 61. Nb5 {[%clk 0:00:24]} 61... Bb4 {[%clk 0:01:16.2]} 62. Nc7+
{[%clk 0:00:22]} 62... Kd6 {[%clk 0:01:16.4]} 63. Ne8+ {[%clk 0:00:21]} 63...
Ke7 {[%clk 0:01:17.3]} 64. Ng7 {[%clk 0:00:21.9]} 64... Kf6 {[%clk 0:01:18.5]}
65. Nh5+ {[%clk 0:00:23.2]} 65... Ke6 {[%clk 0:01:19]} 66. Ng3 {[%clk
0:00:22.1]} 66... Be1 {[%clk 0:01:17.3]} 67. Ne2 {[%clk 0:00:21.6]} 67... Kf6
{[%clk 0:01:17]} 68. Nc1 {[%clk 0:00:22.1]} 68... Ke6 {[%clk 0:01:14.1]} 69. Nb3
{[%clk 0:00:23.1]} 69... Bb4 {[%clk 0:01:15.2]} 70. Kg3 {[%clk 0:00:21.6]} 70...
Be7 {[%clk 0:01:14.2]} 71. Kh3 {[%clk 0:00:21.8]} 71... Bd8 {[%clk 0:01:14.6]}
72. Kg3 {[%clk 0:00:21.9]} 72... Kd6 {[%clk 0:01:09.4]} 73. Kf3 {[%clk
0:00:22.6]} 73... Ke6 {[%clk 0:01:10.3]} 74. Nc5+ {[%clk 0:00:21.3]} 74... Kf6
{[%clk 0:01:08.5]} 75. Kg3 {[%clk 0:00:21.1]} 75... Be7 {[%clk 0:01:09]} 76.
Nd7+ {[%clk 0:00:13.6]} 76... Ke6 {[%clk 0:01:08.2]} 77. Nc5+ {[%clk 0:00:14.7]}
77... Kf6 {[%clk 0:00:57.9]} 78. Nd3 {[%clk 0:00:14.2]} 78... Ba3 {[%clk
0:00:56.8]} 79. Kh4 {[%clk 0:00:13]} 79... Be7 {[%clk 0:00:54.4]} 80. Kh5 {[%clk
0:00:13.6]} 80... Bf8 {[%clk 0:00:52.6]} 81. Ne5 {[%clk 0:00:10.6]} 81... Bb4
{[%clk 0:00:53.8]} 82. Nc6 {[%clk 0:00:11.3]} 82... Bd2 {[%clk 0:00:53.6]} 83.
Kh4 {[%clk 0:00:10]} 83... Bxe3 {[%clk 0:00:53]} 84. Kg3 {[%clk 0:00:05.4]}
84... Bd2 {[%clk 0:00:53.1]} 85. Kf3 {[%clk 0:00:06.5]} 85... Ke6 {[%clk
0:00:53.6]} 86. Ne5 {[%clk 0:00:06.9]} 86... Bc3 {[%clk 0:00:54.1]} 87. Ke3
{[%clk 0:00:07.6]} 87... Bb4 {[%clk 0:00:55]} 88. Nc6 {[%clk 0:00:08.1]} 88...
Kd6 {[%clk 0:00:46.8]} 89. Ne5 {[%clk 0:00:08.9]} 89... Ke6 {[%clk 0:00:46.8]}
90. Kf3 {[%clk 0:00:09.5]} 1/2-1/2

[Event "*** Titled Tuesday Blitz"]
[Site "Chess.com"]
[Date "2019.01.01"]
[Round "2"]
[White "2nd_life"]
[Black "farzadbfd"]
[Result "1/2-1/2"]
[WhiteElo "2379"]
[BlackElo "2501"]
[TimeControl "180+2"]
[EndTime "13:25:20 PST"]
[Termination "Game drawn - insufficient material"]

1. e4 {[%clk 0:02:59.3]} 1... e5 {[%clk 0:03:01.1]} 2. f4 {[%clk 0:02:59.8]}
2... Bc5 {[%clk 0:03:01.6]} 3. Nf3 {[%clk 0:03:00.5]} 3... d6 {[%clk 0:03:02.7]}
4. Nc3 {[%clk 0:03:00.5]} 4... Nc6 {[%clk 0:03:04]} 5. Bc4 {[%clk 0:02:58.7]}
5... Bg4 {[%clk 0:03:04.8]} 6. Na4 {[%clk 0:02:35.8]} 6... Nd4 {[%clk
0:02:49.1]} 7. Be2 {[%clk 0:02:29.4]} 7... Bxf3 {[%clk 0:02:02.1]} 8. Bxf3
{[%clk 0:02:28.7]} 8... exf4 {[%clk 0:02:03.5]} 9. Nxc5 {[%clk 0:02:02.8]} 9...
dxc5 {[%clk 0:02:05.4]} 10. O-O {[%clk 0:02:02.6]} 10... Ne7 {[%clk 0:01:50.3]}
11. d3 {[%clk 0:01:55.1]} 11... Ng6 {[%clk 0:01:49.4]} 12. Bh5 {[%clk
0:01:49.3]} 12... Ne6 {[%clk 0:01:40.6]} 13. Kh1 {[%clk 0:01:21.4]} 13... Qd4
{[%clk 0:01:18.9]} 14. Qg4 {[%clk 0:00:51.1]} 14... Ne5 {[%clk 0:01:14.7]} 15.
Qxe6+ {[%clk 0:00:44]} 15... Kd8 {[%clk 0:01:07.4]} 16. Qb3 {[%clk 0:00:38.7]}
16... g6 {[%clk 0:01:05.7]} 17. Be2 {[%clk 0:00:36.9]} 17... g5 {[%clk 0:00:46]}
18. Qxb7 {[%clk 0:00:35.8]} 18... Kd7 {[%clk 0:00:42.8]} 19. c3 {[%clk 0:00:29]}
19... Qd6 {[%clk 0:00:43.4]} 20. d4 {[%clk 0:00:29.9]} 20... cxd4 {[%clk
0:00:38.7]} 21. cxd4 {[%clk 0:00:30.6]} 21... Nc6 {[%clk 0:00:39.7]} 22. Bb5
{[%clk 0:00:18.7]} 22... Rhb8 {[%clk 0:00:39]} 23. Qa6 {[%clk 0:00:15]} 23...
Rb6 {[%clk 0:00:39]} 24. Qa4 {[%clk 0:00:16.2]} 24... Rab8 {[%clk 0:00:39.9]}
25. Bxc6+ {[%clk 0:00:14.9]} 25... Qxc6 {[%clk 0:00:41.1]} 26. Qxc6+ {[%clk
0:00:16]} 26... Rxc6 {[%clk 0:00:42.7]} 27. Rf2 {[%clk 0:00:16]} 27... Rc4
{[%clk 0:00:41.9]} 28. h4 {[%clk 0:00:16.4]} 28... h6 {[%clk 0:00:42.3]} 29. Rd2
{[%clk 0:00:13.6]} 29... Rbb4 {[%clk 0:00:41.7]} 30. hxg5 {[%clk 0:00:10.4]}
30... hxg5 {[%clk 0:00:42.4]} 31. a3 {[%clk 0:00:09.9]} 31... Rb3 {[%clk
0:00:40.6]} 32. Kg1 {[%clk 0:00:10.1]} 32... Re3 {[%clk 0:00:38.5]} 33. e5
{[%clk 0:00:10.4]} 33... Re1+ {[%clk 0:00:39.1]} 34. Kf2 {[%clk 0:00:10.5]}
34... Rexc1 {[%clk 0:00:39.7]} 35. Rxc1 {[%clk 0:00:12]} 35... Rxc1 {[%clk
0:00:41.6]} 36. Kf3 {[%clk 0:00:13.2]} 36... Ke6 {[%clk 0:00:34.1]} 37. Kg4
{[%clk 0:00:13.8]} 37... f6 {[%clk 0:00:35.6]} 38. exf6 {[%clk 0:00:13.2]} 38...
Kxf6 {[%clk 0:00:37.5]} 39. d5 {[%clk 0:00:14.8]} 39... Rg1 {[%clk 0:00:25.8]}
40. b4 {[%clk 0:00:13.6]} 40... Ra1 {[%clk 0:00:25.8]} 41. d6 {[%clk 0:00:13.6]}
41... cxd6 {[%clk 0:00:18.3]} 42. Rxd6+ {[%clk 0:00:15.5]} 42... Ke5 {[%clk
0:00:20]} 43. Ra6 {[%clk 0:00:16]} 43... Ra2 {[%clk 0:00:21.4]} 44. Kf3 {[%clk
0:00:13.3]} 44... g4+ {[%clk 0:00:16.1]} 45. Kxg4 {[%clk 0:00:14.4]} 45... Rxg2+
{[%clk 0:00:17.7]} 46. Kf3 {[%clk 0:00:16.1]} 46... Rg3+ {[%clk 0:00:19.3]} 47.
Kf2 {[%clk 0:00:17.6]} 47... Rg7 {[%clk 0:00:21]} 48. b5 {[%clk 0:00:16]} 48...
Ke4 {[%clk 0:00:19.9]} 49. Re6+ {[%clk 0:00:15.7]} 49... Kf5 {[%clk 0:00:20.2]}
50. Ra6 {[%clk 0:00:16.5]} 50... Rc7 {[%clk 0:00:20.9]} 51. b6 {[%clk
0:00:16.6]} 51... Rc2+ {[%clk 0:00:21.3]} 52. Kf1 {[%clk 0:00:14.5]} 52... axb6
{[%clk 0:00:22.3]} 53. Rxb6 {[%clk 0:00:15.8]} 53... Kg4 {[%clk 0:00:23.9]} 54.
Rb3 {[%clk 0:00:16.8]} 54... Ra2 {[%clk 0:00:24.9]} 55. Rc3 {[%clk 0:00:17.3]}
55... Kf5 {[%clk 0:00:26.2]} 56. Rb3 {[%clk 0:00:18.2]} 56... Ke4 {[%clk
0:00:27.5]} 57. Rc3 {[%clk 0:00:18.8]} 57... Ra1+ {[%clk 0:00:28.1]} 58. Kf2
{[%clk 0:00:19.7]} 58... Rb1 {[%clk 0:00:29.6]} 59. a4 {[%clk 0:00:18.3]} 59...
Rb2+ {[%clk 0:00:31.1]} 60. Kf1 {[%clk 0:00:19.1]} 60... Ra2 {[%clk 0:00:32.8]}
61. Rc4+ {[%clk 0:00:19.8]} 61... Ke3 {[%clk 0:00:34]} 62. Rc3+ {[%clk
0:00:20.9]} 62... Ke4 {[%clk 0:00:35.7]} 63. Rc4+ {[%clk 0:00:22]} 63... Kf3
{[%clk 0:00:37.4]} 64. Rc3+ {[%clk 0:00:23.4]} 64... Kg4 {[%clk 0:00:38.9]} 65.
Rb3 {[%clk 0:00:24.4]} 65... Rxa4 {[%clk 0:00:39.7]} 66. Rc3 {[%clk 0:00:25.9]}
66... Rb4 {[%clk 0:00:40.1]} 67. Ra3 {[%clk 0:00:26.7]} 67... Kf5 {[%clk
0:00:41.7]} 68. Rc3 {[%clk 0:00:27.5]} 68... Ke4 {[%clk 0:00:42.5]} 69. Ra3
{[%clk 0:00:28.4]} 69... Rb5 {[%clk 0:00:43.6]} 70. Rc3 {[%clk 0:00:29.1]} 70...
Rd5 {[%clk 0:00:44.5]} 71. Kf2 {[%clk 0:00:27.7]} 71... Rd2+ {[%clk 0:00:45.1]}
72. Kf1 {[%clk 0:00:28.1]} 72... Kd4 {[%clk 0:00:44.4]} 73. Ra3 {[%clk
0:00:28.9]} 73... Ke4 {[%clk 0:00:44.5]} 74. Rb3 {[%clk 0:00:29.8]} 74... Kf5
{[%clk 0:00:45.5]} 75. Ra3 {[%clk 0:00:30.9]} 75... Kg4 {[%clk 0:00:40.7]} 76.
Rb3 {[%clk 0:00:32]} 76... Ra2 {[%clk 0:00:42]} 77. Rc3 {[%clk 0:00:32.9]} 77...
Rb2 {[%clk 0:00:43.4]} 78. Ra3 {[%clk 0:00:33.8]} 78... Rb4 {[%clk 0:00:44.4]}
79. Rc3 {[%clk 0:00:34.8]} 79... Rb8 {[%clk 0:00:44]} 80. Ra3 {[%clk 0:00:35.7]}
80... Re8 {[%clk 0:00:44.5]} 81. Rb3 {[%clk 0:00:36.2]} 81... f3 {[%clk
0:00:42.4]} 82. Rb7 {[%clk 0:00:36.6]} 82... Rg8 {[%clk 0:00:43.2]} 83. Kf2
{[%clk 0:00:31]} 83... Rf8 {[%clk 0:00:32.9]} 84. Rb4+ {[%clk 0:00:28.5]} 84...
Kg5 {[%clk 0:00:30.4]} 85. Rc4 {[%clk 0:00:28.8]} 85... Rf4 {[%clk 0:00:27.9]}
86. Rc8 {[%clk 0:00:26.6]} 86... Rf7 {[%clk 0:00:27.9]} 87. Rc4 {[%clk
0:00:26.1]} 87... Rf4 {[%clk 0:00:28.4]} 88. Rc8 {[%clk 0:00:26.9]} 88... Kh4
{[%clk 0:00:27.2]} 89. Rg8 {[%clk 0:00:25.6]} 89... Rf7 {[%clk 0:00:27]} 90. Rg3
{[%clk 0:00:25.7]} 90... Kh5 {[%clk 0:00:26.8]} 91. Rxf3 {[%clk 0:00:26.7]}
91... Rxf3+ {[%clk 0:00:27.9]} 92. Kxf3 {[%clk 0:00:27.9]} 1/2-1/2